bitfinex-derivatives/quotes_SOLF0:USTF0_20240927
["timestamp","ask_amount","ask_price","bid_price","bid_amount"]
[1727425035567,3.14353974,158.29,158.24,10.71]
[1727425035869,3.14353974,158.29,158.16,4.53726218]
[1727425035870,3.1577,158.3,158.26,3.1585]
[1727425036165,10.71,158.31,158.26,3.1585]
[1727425036366,1.2876,158.35,158.27,10.71]
[1727425036573,13.8673,158.33,158.28,13.868]
[1727425036872,3.1573,158.33,158.28,10.71]
[1727425037070,3.157,158.34,158.3,10.71]
[1727425038772,3.1567,158.35,158.3,13.8676]
[1727425039070,3.1567,158.35,158.31,10.71]
[1727425039263,10.71,158.36,158.31,10.71]
[1727425039464,10.71,158.37,158.33,10.71]
[1727425039866,66.37830417,158.39,158.33,10.71]
[1727425040072,69.53430417,158.39,158.34,13.8669]
[1727425040376,66.37830417,158.39,158.34,10.71]
[1727425040572,66.37830417,158.39,158.34,13.8669]
[1727425041174,66.37830417,158.39,158.35,3.1566]
[1727425041676,66.37830417,158.39,158.35,1.3301]
[1727425042473,69.53440417,158.39,158.35,1.3301]
[1727425042772,3.1561,158.39,158.35,1.3301]
[1727425043871,3.1562,158.38,158.35,1.3301]
[1727425044575,3.1562,158.38,158.35,4.4868]
[1727425044775,3.1562,158.38,158.35,1.3301]
[1727425048478,3.1562,158.38,158.35,4.4868]
[1727425049174,3.1562,158.38,158.36,5.74986641]
[1727425049378,3.1562,158.38,158.35,1.3301]
[1727425049582,3.1562,158.38,158.36,5.74588204]
[1727425049777,3.1562,158.38,158.35,1.3301]
[1727425049978,3.1562,158.38,158.36,5.74586392]
[1727425050177,3.156,158.39,158.35,1.3301]
[1727425050374,3.156,158.39,158.36,5.74586392]
[1727425050580,19.83666481,158.43,158.35,4.4867]
[1727425050776,19.83666481,158.43,158.36,5.7458312]
[1727425051079,3.1565,158.36,158.35,1.3301]
[1727425051479,3.1565,158.36,158.33,2.6705]
[1727425051776,3.1565,158.36,158.34,5.74640147]
[1727425051984,16.68,158.4,158.3,21.1549]
[1727425052176,16.68,158.4,158.31,5.74640612]
[1727425052377,16.68,158.4,158.32,5.74640612]
[1727425052983,16.68,158.4,158.3,17.9973]
[1727425053681,3.1565,158.36,158.32,3.1573]
[1727425054778,3.1568,158.35,158.31,3.1574]
[1727425054986,3.1568,158.35,158.32,5.73249286]
[1727425055282,16.68,158.4,158.3,17.9973]
[1727425055484,16.68,158.4,158.31,5.73434572]
[1727425055683,16.68,158.4,158.32,5.73434572]
[1727425055877,16.68,158.4,158.3,17.9973]
[1727425056073,16.68,158.4,158.31,5.73435035]
[1727425056273,16.68,158.4,158.32,5.73435035]
[1727425056482,16.68,158.4,158.31,3.1575]
[1727425056684,16.68,158.4,158.32,5.73560768]
[1727425056883,3.1568,158.35,158.31,3.1575]
[1727425057282,3.1568,158.35,158.32,5.73560768]
[1727425057484,3.1569,158.34,158.31,3.1575]
[1727425057686,3.1569,158.34,158.32,5.73653993]
[1727425057890,16.68,158.38,158.3,4.475]
[1727425058085,3.1573,158.33,158.31,5.73686693]
[1727425058286,3.1573,158.33,158.3,1.3173]
[1727425058493,3.1573,158.33,158.31,5.7363457]
[1727425058690,3.1573,158.33,158.3,1.3173]
[1727425059195,3.1573,158.33,158.31,5.73651354]
[1727425059692,3.1573,158.33,158.3,1.3173]
[1727425059890,3.1573,158.33,158.31,5.73596354]
[1727425060088,3.1573,158.33,158.3,4.475]
[1727425060291,3.1573,158.33,158.31,5.73596813]
[1727425060483,3.1573,158.33,158.3,4.475]
[1727425060687,3.1573,158.33,158.31,5.73570574]
[1727425060891,3.1573,158.33,158.3,4.475]
[1727425061091,3.1573,158.33,158.31,5.73570114]
[1727425061288,3.1573,158.33,158.3,4.475]
[1727425061493,3.1573,158.33,158.31,5.73568147]
[1727425061691,3.1573,158.33,158.3,4.475]
[1727425061885,16.68,158.41,158.32,16.68]
[1727425062089,16.68,158.41,158.32,17.9886]
[1727425062489,16.68,158.41,158.34,3.1568]
[1727425062886,3.1562,158.38,158.34,3.1568]
[1727425063691,3.1561,158.39,158.35,3.1566]
[1727425064496,3.1561,158.39,158.36,10.67]
[1727425064898,3.1562,158.38,158.36,10.67]
[1727425065395,10.67,158.4,158.34,13.8269]
[1727425067196,10.67,158.37,158.31,10.67]
[1727425067594,3.1566,158.36,158.32,3.1572]
[1727425067797,10.67,158.37,158.32,3.1572]
[1727425068001,3.1567,158.35,158.31,13.8274]
[1727425069200,3.1567,158.35,158.32,3.1573]
[1727425069395,3.1567,158.35,158.31,10.67]
[1727425069704,3.1567,158.35,158.31,13.8274]
[1727425070108,3.1567,158.35,158.32,10.67]
[1727425070797,3.1567,158.35,158.32,13.8273]
[1727425072300,3.1567,158.35,158.32,10.67]
[1727425073292,10.67,158.37,158.32,10.67]
[1727425073494,10.67,158.36,158.31,10.67]
[1727425073696,3.20622031,158.35,158.3,1.3173]
[1727425073897,10.67,158.36,158.3,11.9873]
[1727425074198,10.67,158.36,158.31,10.67]
[1727425074594,3.157,158.34,158.31,10.67]
[1727425075396,3.157,158.34,158.31,13.8275]
[1727425076401,3.1568,158.35,158.31,13.8275]
[1727425076701,10.67,158.37,158.31,10.67]
[1727425077198,10.67,158.37,158.32,10.67]
[1727425077802,3.1567,158.36,158.32,13.8273]
[1727425078198,69.51345534,158.43,158.34,10.67]
[1727425078401,10.67,158.39,158.34,10.67]
[1727425078903,3.1564,158.37,158.34,10.67]
[1727425079100,10.67,158.39,158.34,10.67]
[1727425079403,10.67,158.37,158.32,10.67]
[1727425079599,10.67,158.37,158.31,10.67]
[1727425079796,10.67,158.37,158.31,13.8275]
[1727425080011,10.67,158.36,158.31,13.8275]
[1727425080805,3.1569,158.35,158.31,13.8275]
[1727425083603,10.67,158.36,158.31,13.8275]
[1727425083805,3.1569,158.34,158.31,13.8275]
[1727425085815,3.1569,158.34,158.31,10.67]
[1727425086517,3.22169068,158.35,158.29,89.07297735]
[1727425086715,3.22169068,158.35,158.3,5.73561361]
[1727425086913,3.1573,158.33,158.29,89.07297735]
[1727425087111,3.1573,158.33,158.3,5.73561291]
[1727425087310,3.22169068,158.35,158.29,89.07297735]
[1727425087514,3.22169068,158.35,158.3,5.73559658]
[1727425087817,3.22169068,158.35,158.29,89.07297735]
[1727425088018,3.1574,158.32,158.3,5.73559658]
[1727425088218,3.1574,158.32,158.29,78.40297735]
[1727425088419,3.1574,158.32,158.3,5.73557525]
[1727425088619,3.1574,158.32,158.29,89.07297735]
[1727425088916,10.67,158.34,158.29,10.67]
[1727425089817,3.1575,158.32,158.29,13.8279]
[1727425090717,3.1575,158.32,158.3,10.67]
[1727425092821,3.1572,158.33,158.3,13.8277]
[1727425093723,3.1572,158.33,158.3,10.67]
[1727425094223,1.2751,158.38,158.31,13.8274]
[1727425094416,11.9451,158.38,158.32,10.67]
[1727425094822,10.67,158.39,158.34,10.67]
[1727425095822,3.1564,158.37,158.34,10.67]
[1727425096026,3.1564,158.37,158.33,13.8271]
[1727425097129,3.1567,158.36,158.33,10.67]
[1727425098419,3.1568,158.35,158.31,3.1574]
[1727425098624,3.1568,158.35,158.31,13.8274]
[1727425098825,3.1569,158.34,158.31,13.8274]
[1727425099228,10.67,158.37,158.31,13.8274]
[1727425099527,3.1569,158.35,158.31,13.8274]
[1727425100229,3.1569,158.34,158.31,13.8274]
[1727425100530,10.67,158.35,158.3,10.67]
[1727425100828,3.157,158.34,158.3,13.8277]
[1727425101326,10.67,158.35,158.3,10.67]
[1727425101526,3.1572,158.33,158.3,13.8276]
[1727425101929,10.67,158.35,158.3,13.8276]
[1727425102227,3.157,158.34,158.3,13.8276]
[1727425102431,3.157,158.34,158.31,3.1575]
[1727425106427,3.157,158.34,158.32,10.67]
[1727425107935,3.157,158.34,158.32,13.8273]
[1727425109436,3.1568,158.35,158.32,13.8273]
[1727425112637,10.67,158.37,158.32,10.67]
[1727425112638,3.1569,158.34,158.32,10.67]
[1727425114437,3.1569,158.34,158.31,13.8275]
[1727425115033,3.1569,158.34,158.31,3.1575]
[1727425115244,3.1569,158.34,158.31,13.8275]
[1727425115432,3.1569,158.34,158.32,3.1573]
[1727425116639,13.82947412,158.34,158.26,2.5155]
[1727425116937,13.82947412,158.34,158.25,1.2965]
[1727425116938,10.67,158.29,158.27,5.73655275]
[1727425117135,10.67,158.29,158.25,11.9665]
[1727425117333,3.158,158.29,158.26,16.40578618]
[1727425117541,3.09124995,158.34,158.28,10.67]
[1727425117737,10.67,158.34,158.28,10.67]
[1727425117936,3.12662545,158.33,158.28,10.67]
[1727425118141,6.28382545,158.33,158.29,3.1579]
[1727425118337,6.28382545,158.33,158.28,10.67]
[1727425119136,3.1573,158.32,158.28,13.828]
[1727425119533,10.67,158.32,158.27,10.67]
[1727425119939,3.1577,158.31,158.27,10.67]
[1727425120336,10.67,158.29,158.21,2.6151]
[1727425120541,10.67,158.26,158.22,16.26673325]
[1727425120841,3.1588,158.25,158.21,11.9636]
[1727425121146,3.1588,158.25,158.21,1.2936]
[1727425121338,3.1588,158.25,158.22,10.67]
[1727425121639,16.97507066,158.26,158.22,10.67]
[1727425121941,13.8285,158.26,158.22,10.67]
[1727425122532,3.1584,158.27,158.22,13.8293]
[1727425122935,3.1595,158.22,158.15,1.2852]
[1727425123143,10.67,158.23,158.18,10.67]
[1727425123847,6.3145,158.33,158.2,10.67]
[1727425124142,3.1591,158.23,158.2,10.67]
[1727425124443,68.22,158.34,158.21,10.67]
[1727425124743,10.67,158.27,158.21,10.67]
[1727425125044,10.67,158.26,158.17,1.2963]
[1727425125342,10.67,158.26,158.2,10.67]
[1727425126446,3.1588,158.25,158.2,13.8296]
[1727425126847,3.1589,158.24,158.2,13.8296]
[1727425127145,10.67,158.25,158.19,13.8299]
[1727425127443,10.67,158.25,158.19,10.67]
[1727425127943,3.1593,158.23,158.19,13.8299]
[1727425129448,3.1589,158.24,158.2,10.67]
[1727425129640,10.67,158.25,158.2,10.67]
[1727425130742,10.67,158.25,158.2,13.8296]
[1727425130743,3.1588,158.25,158.2,13.8296]
[1727425130942,3.1588,158.25,158.2,10.67]
[1727425131749,3.1588,158.25,158.21,3.1595]
[1727425132540,3.1588,158.25,158.2,13.8296]
[1727425132744,3.1588,158.25,158.2,10.67]
[1727425133539,3.1592,158.23,158.2,10.67]
[1727425134554,3.159,158.24,158.2,10.67]
[1727425135244,13.829,158.24,158.18,3.16]
[1727425135451,10.67,158.21,158.17,1.2963]
[1727425136157,3.1599,158.2,158.17,1.2963]
[1727425137240,3.16,158.19,158.17,1.2963]
[1727425137442,3.16,158.19,158.16,1.3268]
[1727425137844,3.1601,158.18,158.16,1.3268]
[1727425138550,3.16,158.19,158.16,11.9968]
[1727425139458,3.1601,158.18,158.16,11.9968]
[1727425140057,3.1603,158.17,158.16,1.3268]
[1727425140450,10.67,158.18,158.14,10.67]
[1727425140650,3.1606,158.16,158.14,10.67]
[1727425140952,3.15219012,158.23,158.13,1.3176]
[1727425140953,10.67,158.17,158.13,1.3176]
[1727425141650,3.1606,158.16,158.13,1.3176]
[1727425142452,3.1608,158.15,158.13,1.3176]
[1727425142948,3.1615,158.12,158.1,1.3058]
[1727425143354,10.67,158.14,158.1,1.3058]
[1727425143553,3.1615,158.11,158.1,1.3058]
[1727425147456,3.1615,158.11,158.07,89.10397421]
[1727425147651,3.1619,158.1,158.07,89.10397421]
[1727425147959,10.67,158.12,158.07,85.94167421]
[1727425148862,10.67,158.12,158.07,89.10397421]
[1727425149058,10.67,158.12,158.07,75.27167421]
[1727425149259,10.67,158.11,158.05,5.7575]
[1727425149457,10.67,158.09,158.05,2.5949]
[1727425149964,3.1622,158.08,158.05,2.5949]
[1727425150761,3.1622,158.08,158.05,5.7576]
[1727425151867,6.3203,158.18,158.07,10.67]
[1727425152166,6.3203,158.18,158.1,10.67]
[1727425152365,22.0978,158.44,158.05,2.5949]
[1727425152366,224.0,158.38,158.15,10.67]
[1727425152662,224.0,158.38,158.16,10.67]
[1727425152663,10.67,158.21,158.16,10.67]
[1727425152863,3.16,158.19,158.16,10.67]
[1727425154067,3.1602,158.18,158.15,3.1606]
[1727425154262,3.1602,158.18,158.14,3.1609]
[1727425154462,3.1602,158.18,158.15,10.67]
[1727425155667,3.1604,158.17,158.15,10.67]
[1727425155863,3.1604,158.17,158.14,13.8309]
[1727425156068,3.1604,158.17,158.14,10.67]
[1727425156260,3.1604,158.17,158.13,3.161]
[1727425156669,3.1604,158.17,158.14,13.8309]
[1727425157170,3.1602,158.18,158.15,10.67]
[1727425157466,10.67,158.21,158.15,10.67]
[1727425157667,10.67,158.19,158.14,10.67]
[1727425158364,3.1607,158.16,158.14,10.67]
[1727425158568,10.67,158.17,158.13,1.3589]
[1727425158761,10.67,158.17,158.12,10.67]
[1727425158962,10.67,158.16,158.1,10.67]
[1727425159163,10.67,158.16,158.11,3.1614]
[1727425159164,3.1608,158.15,158.11,3.1614]
[1727425159674,3.1611,158.14,158.08,75.3410762]
[1727425159966,3.1611,158.14,158.1,10.67]
[1727425160271,3.1611,158.14,158.11,3.1614]
[1727425161662,3.1608,158.15,158.12,13.8313]
[1727425164180,3.1608,158.15,158.13,3.1611]
[1727425165167,10.67,158.19,158.14,3.1609]
[1727425166377,3.1602,158.18,158.15,3.1607]
[1727425166572,10.67,158.19,158.15,3.1607]
[1727425166878,3.1602,158.18,158.14,3.1609]
[1727425167281,10.67,158.15,158.07,1.2792]
[1727425167574,10.67,158.13,158.07,1.2792]
[1727425167776,3.10255497,158.15,158.07,11.9492]
[1727425167977,10.67,158.12,158.09,3.1619]
[1727425168576,1.2709,158.18,158.07,11.9492]
[1727425168781,10.67,158.12,158.07,11.9492]
[1727425169183,10.67,158.12,158.09,3.1618]
[1727425169981,10.67,158.11,158.07,1.2792]
[1727425170879,10.67,158.11,158.0,8.78169958]
[1727425170880,3.17356042,158.14,158.0,8.78169958]
[1727425171187,2.5997,158.17,158.03,10.67]
[1727425171377,10.67,158.08,158.04,3.1628]
[1727425171777,13.8322,158.08,158.04,3.1628]
[1727425172182,3.1622,158.08,158.04,3.1628]
[1727425172482,3.1622,158.08,158.05,3.1627]
[1727425174986,16.7,158.1,158.04,3.1628]
[1727425175587,2.5997,158.17,158.03,16.7]
[1727425175790,16.7,158.12,158.03,16.7]
[1727425176085,3.1619,158.1,158.06,3.1624]
[1727425176384,19.81710256,158.12,158.02,16.7]
[1727425176587,19.81710256,158.12,158.05,3.1626]
[1727425176985,19.81710256,158.12,158.02,16.7]
[1727425177186,16.7,158.1,158.04,3.1628]
[1727425177887,3.1623,158.07,158.04,3.1628]
[1727425179591,3.1623,158.07,158.01,2.5512]
[1727425179892,3.1625,158.06,158.03,3.163]
[1727425180089,3.1625,158.06,158.01,2.5512]
[1727425180285,16.7,158.1,158.01,2.5512]
[1727425181196,3.1624,158.07,158.04,3.1628]
[1727425182990,16.7,158.08,158.01,2.5512]
[1727425183295,16.7,158.07,158.01,1.2734]
[1727425183498,16.7,158.07,158.0,1.3479]
[1727425183699,3.1629,158.05,158.02,3.1633]
[1727425185994,3.1626,158.06,158.03,3.163]
[1727425186699,3.1627,158.05,158.03,3.163]
[1727425187106,16.7,158.08,158.02,3.1633]
[1727425187506,16.7,158.08,157.98,17.9512]
[1727425187698,16.7,158.08,158.01,3.1634]
[1727425188307,3.1629,158.05,158.01,3.1634]
[1727425189211,3.1629,158.04,158.01,3.1634]
[1727425192105,16.7,158.04,157.98,1.2512]
[1727425192901,16.7,158.04,157.96,1.3018]
[1727425193906,3.1636,158.01,157.98,3.164]
[1727425195313,3.1632,158.03,158.0,3.1637]
[1727425195517,10.7,158.02,157.95,75.39723481]
[1727425195713,10.7,158.02,157.96,10.7]
[1727425196312,3.1636,158.01,157.98,3.1641]
[1727425196707,10.7,158.02,157.98,3.1641]
[1727425196909,3.1638,158.0,157.97,3.1642]
[1727425197512,3.1639,157.99,157.97,3.1642]
[1727425197704,13.8639,157.99,157.97,3.1642]
[1727425198608,13.8642,157.98,157.95,75.39723481]
[1727425199509,3.1645,157.96,157.95,75.39723481]
[1727425204111,3.1651,157.94,157.92,1.2674]
[1727425204312,10.7,157.97,157.92,11.9674]
[1727425204819,6.3243,158.08,157.96,10.7]
[1727425205012,1.2566,158.09,158.01,10.7]
[1727425205216,10.7,158.06,158.01,10.7]
[1727425205814,10.7,158.04,158.0,10.7]
[1727425206016,10.7,158.04,157.99,10.7]
[1727425206316,3.1636,158.01,157.99,10.7]
[1727425206625,3.1639,158.0,157.98,1.2786]
[1727425207715,3.1639,157.99,157.98,1.2786]
[1727425207916,10.7,158.02,157.96,10.7]
[1727425208118,3.1643,157.98,157.96,10.7]
[1727425209113,3.1643,157.97,157.96,10.7]
[1727425210815,3.1645,157.96,157.93,15.2404]
[1727425211015,10.7,157.99,157.93,15.2404]
[1727425211422,3.1645,157.96,157.93,15.2404]
[1727425212224,3.1647,157.95,157.93,15.2404]
[1727425212423,1.3154,158.03,157.93,15.2405]
[1727425212723,10.7,157.99,157.93,15.2405]
[1727425213729,3.1646,157.96,157.93,15.2405]
[1727425215226,3.1646,157.96,157.93,4.5405]
[1727425215427,3.1646,157.96,157.93,15.2405]
[1727425217230,10.7,157.97,157.93,12.0754]
[1727425218728,10.7,157.97,157.93,10.7]
[1727425219323,3.1649,157.95,157.93,10.7]
[1727425219535,10.7,157.97,157.93,10.7]
[1727425220226,10.7,157.97,157.93,13.8651]
[1727425220227,3.1647,157.96,157.93,13.8651]
[1727425220825,3.1648,157.95,157.93,3.1651]
[1727425221131,10.7,157.97,157.92,10.7]
[1727425221633,3.165,157.94,157.92,10.7]
[1727425222033,3.1651,157.93,157.91,13.235]
[1727425225131,3.1653,157.92,157.89,4.5264]
[1727425225331,3.1653,157.92,157.89,15.2264]
[1727425225934,3.1651,157.93,157.9,3.1657]
[1727425226638,3.1651,157.93,157.91,10.7]
[1727425227338,3.1651,157.93,157.9,3.1657]
[1727425227642,3.1651,157.93,157.9,13.8657]
[1727425229041,3.1651,157.93,157.91,3.1654]
[1727425229239,3.1654,157.92,157.89,10.7]
[1727425229644,10.7,157.94,157.89,13.8658]
[1727425230841,3.1655,157.92,157.89,13.8658]
[1727425232043,6.3275,158.01,157.91,13.8654]
[1727425232240,10.7,157.96,157.91,13.8654]
[1727425232546,6.3275,158.01,157.88,78.52677307]
[1727425232547,3.1648,157.95,157.93,10.7]
[1727425233247,3.1648,157.95,157.92,13.8652]
[1727425233446,3.165,157.94,157.92,13.8652]
[1727425234643,10.7,157.96,157.91,10.7]
[1727425235755,3.1652,157.93,157.91,13.8655]
[1727425236457,10.7,157.96,157.91,10.7]
[1727425236852,3.1651,157.94,157.91,13.8654]
[1727425237557,3.1651,157.93,157.91,13.8654]
[1727425238858,3.1651,157.94,157.91,13.8654]
[1727425242161,3.1648,157.95,157.92,3.1652]
[1727425242761,3.165,157.94,157.92,3.1652]
[1727425243062,3.165,157.94,157.92,13.8652]
[1727425243857,1.3154,158.03,157.93,10.7]
[1727425244052,1.3154,158.03,157.96,10.7]
[1727425244256,1.3154,158.03,157.97,10.7]
[1727425244257,10.7,158.02,157.97,10.7]
[1727425244462,3.164,157.99,157.96,13.8645]
[1727425245463,10.7,158.01,157.93,5.71547023]
[1727425245661,10.7,157.99,157.94,10.7]
[1727425246370,3.1644,157.97,157.94,13.8648]
[1727425247462,10.7,157.99,157.92,5.7521]
[1727425247664,10.7,157.98,157.92,16.4521]
[1727425248053,3.1648,157.95,157.93,3.1651]
[1727425248461,1.3154,158.03,157.93,3.1651]
[1727425248666,10.7,157.98,157.93,3.1651]
[1727425248874,10.7,157.98,157.93,13.8651]
[1727425249059,1.3154,158.03,157.92,2.5869]
[1727425249261,1.3154,158.03,157.97,10.7]
[1727425249567,12.0154,158.03,157.97,10.7]
[1727425250162,3.1639,158.0,157.97,10.7]
[1727425250368,3.1639,158.0,157.97,13.8643]
[1727425251270,10.7,158.01,157.96,10.7]
[1727425251662,3.1643,157.97,157.96,10.7]
[1727425252269,3.1643,157.97,157.95,10.7]
[1727425253573,3.1643,157.97,157.92,13.2869]
[1727425253574,10.7,157.97,157.92,13.2869]
[1727425253767,10.7,157.97,157.93,5.72831576]
[1727425253968,10.7,157.97,157.92,16.4521]
[1727425254270,10.7,157.97,157.93,5.72832143]
[1727425254471,3.1648,157.95,157.92,15.1986]
[1727425254672,3.1648,157.95,157.93,5.7293365]
[1727425254872,3.1648,157.95,157.92,15.1986]
[1727425255172,3.1648,157.95,157.93,5.7293365]
[1727425255373,3.1648,157.95,157.94,5.7293365]
[1727425260676,3.1647,157.96,157.94,5.7293365]
[1727425260880,3.1647,157.96,157.95,16.4293365]
[1727425262580,3.1647,157.96,157.95,10.7]
[1727425262784,3.1647,157.96,157.95,16.43723147]
[1727425266382,3.1647,157.96,157.95,5.73723147]
[1727425267183,3.1647,157.96,157.95,5.73962516]
[1727425269275,3.1652,157.93,157.9,10.7]
[1727425269488,3.1652,157.93,157.91,11.98206121]
[1727425269787,3.1652,157.93,157.92,5.74073273]
[1727425270481,3.1652,157.93,157.9,13.8656]
[1727425270874,3.1652,157.93,157.91,5.74062589]
[1727425271079,3.1652,157.93,157.92,5.74062589]
[1727425271588,3.1652,157.93,157.91,3.1655]
[1727425271988,10.7,157.96,157.92,5.74044906]
[1727425272188,10.7,157.96,157.93,5.74044906]
[1727425272389,10.7,157.96,157.9,13.8656]
[1727425272688,3.1652,157.93,157.91,5.74024667]
[1727425272888,3.1652,157.93,157.92,5.74024667]
[1727425280491,224.0,158.18,157.92,16.44024667]
[1727425280492,6.3263,158.03,157.92,16.44024667]
[1727425280687,10.7,158.01,157.95,10.7]
[1727425280892,13.3562,158.02,157.97,10.7]
[1727425281587,3.1642,157.98,157.97,10.7]
[1727425285897,3.1644,157.97,157.95,10.7]
[1727425286087,3.1644,157.97,157.96,5.74213742]
[1727425287198,3.1645,157.96,157.95,10.7]
[1727425287390,3.1645,157.96,157.95,5.74241199]
[1727425288600,3.1645,157.96,157.92,100.0]
[1727425288601,3.1651,157.93,157.92,100.0]
[1727425288793,3.1651,157.93,157.92,105.74309206]
[1727425295597,3.1651,157.93,157.92,100.0]
[1727425295795,3.1651,157.93,157.92,105.74251307]
[1727425297700,13.8651,157.93,157.92,105.74251307]
[1727425298002,3.1651,157.93,157.92,105.74251307]
[1727425299103,13.8651,157.93,157.92,105.74251307]
[1727425299303,3.1651,157.93,157.92,100.0]
[1727425299501,3.1651,157.93,157.92,105.74179878]
[1727425301299,3.165,157.94,157.92,110.7]
[1727425301599,12.0692,157.98,157.93,19.6057715]
[1727425301801,3.214158,158.05,157.96,10.7]
[1727425302003,11.9663,158.04,157.98,10.7]
[1727425302500,66.49035201,158.12,158.03,10.7]
[1727425302709,1.2663,158.11,158.04,10.7]
[1727425302899,3.1625,158.06,158.04,10.7]
[1727425304004,1.2663,158.11,158.03,10.7]
[1727425304005,3.1627,158.05,158.03,10.7]
[1727425304197,1.2663,158.11,158.04,10.7]
[1727425304198,10.7,158.1,158.04,10.7]
[1727425306311,1.2663,158.11,158.04,10.7]
[1727425306500,10.7,158.1,158.04,10.7]
[1727425307415,66.49035201,158.12,158.09,10.7]
[1727425307615,3.1617,158.11,158.09,10.7]
[1727425307815,66.49035201,158.12,158.09,10.7]
[1727425308012,3.1617,158.1,158.09,10.7]
[1727425309009,3.1622,158.08,158.03,3.9654]
[1727425309215,3.16001095,158.12,158.06,10.7]
[1727425309414,10.7,158.12,158.06,10.7]
[1727425309616,10.7,158.12,158.07,10.7]
[1727425310006,3.1621,158.09,158.07,10.7]
[1727425311006,3.1621,158.08,158.07,10.7]
[1727425311210,2.5757,158.15,158.04,100.0]
[1727425311211,13.89260143,158.11,158.06,10.7]
[1727425311816,3.1623,158.08,158.06,10.7]
[1727425312809,3.1623,158.07,158.06,10.7]
[1727425313009,2.5757,158.15,158.06,10.7]
[1727425313216,10.7,158.12,158.06,10.7]
[1727425313613,3.1621,158.09,158.06,10.7]
[1727425315627,3.1622,158.08,158.06,10.7]
[1727425315923,10.7,158.1,158.06,10.7]
[1727425316129,10.7,158.08,158.04,100.0]
[1727425316729,3.1627,158.06,158.04,100.0]
[1727425318030,3.1624,158.07,158.04,110.7]
[1727425318222,10.7,158.11,158.06,10.7]
[1727425318734,3.1623,158.08,158.06,10.7]
[1727425319936,3.1623,158.07,158.06,10.7]
[1727425323432,3.1619,158.09,158.06,13.8625]
[1727425323635,13.2757,158.15,158.09,10.7]
[1727425323833,13.2757,158.15,158.1,10.7]
[1727425324033,3.1611,158.13,158.12,10.7]
[1727425324234,6.60716631,158.28,158.13,10.7]
[1727425324235,3.17355534,158.2,158.13,10.7]
[1727425324442,3.17355534,158.2,158.15,10.7]
[1727425325936,3.1607,158.16,158.15,10.7]
[1727425326439,3.1608,158.15,158.12,19.8613]
[1727425326942,3.1609,158.14,158.12,16.7]
[1727425329139,3.1612,158.13,158.1,19.8616]
[1727425329341,19.87355534,158.2,158.1,16.7]
[1727425329841,3.1612,158.13,158.1,16.7]
[1727425330040,19.87355534,158.2,158.1,16.7]
[1727425331039,3.161,158.14,158.1,19.8617]
[1727425332841,19.87355534,158.2,158.1,16.7]
[1727425333336,3.1614,158.12,158.1,16.7]
[1727425333942,3.1615,158.11,158.08,19.862]
[1727425334241,83.16240924,158.18,158.08,16.7]
[1727425334242,1.2724,158.17,158.08,16.7]
[1727425334838,3.1616,158.11,158.08,16.7]
[1727425336741,3.1618,158.1,158.08,16.7]